fUST/lending_fUST_20240727
["ID","MTS","AMOUNT","RATE_DAILY","PERIOD"]
[333288608,1722027043270,-500.0,0.00013889,2]
[333288609,1722027043282,-500.0,0.00013889,2]
[333288610,1722027043294,-500.0,0.00013889,2]
[333288611,1722027043310,-500.0,0.00013889,2]
[333288612,1722027043323,-500.0,0.00013889,2]
[333288613,1722027043335,-500.0,0.00013889,2]
[333288614,1722027043348,-500.0,0.00013889,2]
[333288615,1722027043359,-232.12762965,0.00013889,2]
[333288616,1722027043371,-500.0,0.00013889,2]
[333288617,1722027043386,-319.522517,0.0001389,2]
[333288618,1722027043397,-319.522517,0.0001389,2]
[333288619,1722027043412,-151.0,0.0001389,2]
[333288620,1722027043425,-151.0,0.0001389,2]
[333288621,1722027043439,-151.0,0.0001389,2]
[333288622,1722027043451,-151.0,0.0001389,2]
[333288623,1722027043464,-151.0,0.0001389,2]
[333288624,1722027043476,-151.0,0.0001389,2]
[333288625,1722027043490,-151.0,0.0001389,2]
[333288626,1722027043503,-151.0,0.0001389,2]
[333288627,1722027043516,-151.0,0.0001389,2]
[333288628,1722027043530,-151.0,0.0001389,2]
[333288629,1722027043541,-151.0,0.0001389,2]
[333288630,1722027043554,-151.0,0.0001389,2]
[333288631,1722027043567,-151.0,0.0001389,2]
[333288632,1722027043578,-333.367688,0.0001389,2]
[333288633,1722027043589,-333.367688,0.0001389,2]
[333288634,1722027043602,-151.0,0.0001389,2]
[333288635,1722027043614,-151.0,0.0001389,2]
[333288636,1722027043626,-151.0,0.0001389,2]
[333288637,1722027043638,-55689.0203103,0.0001389,2]
[333288638,1722027043650,-151.0,0.0001389,2]
[333288639,1722027043661,-276.829084,0.0001389,2]
[333288640,1722027043671,-151.0,0.0001389,2]
[333288641,1722027043681,-307.336085,0.0001389,2]
[333288642,1722027043692,-307.336085,0.0001389,2]
[333288643,1722027043703,-341.485817,0.0001389,2]
[333288644,1722027043714,-341.485817,0.0001389,2]
[333288645,1722027043726,-151.0,0.0001389,2]
[333288646,1722027043738,-151.0,0.0001389,2]
[333288647,1722027043750,-151.0,0.0001389,2]
[333288648,1722027043762,-151.0,0.0001389,2]
[333288649,1722027043774,-151.0,0.0001389,2]
[333288650,1722027043785,-151.0,0.0001389,2]
[333288651,1722027043798,-151.0,0.0001389,2]
[333288652,1722027043810,-151.0,0.0001389,2]
[333288653,1722027043822,-151.0,0.0001389,2]
[333288654,1722027043834,-151.0,0.0001389,2]
[333288655,1722027043846,-262.633643,0.0001389,2]
[333288656,1722027043856,-151.0,0.0001389,2]
[333288657,1722027043866,-262.633643,0.0001389,2]
[333288658,1722027043876,-590.02188297,0.00013899,2]
[333288659,1722027043886,-1642.78,0.00013899,2]
[333288660,1722027043897,-500.0,0.00013899,2]
[333288661,1722027043908,-25712.31677953,0.000139,2]
[333288662,1722027043921,-150.112233,0.000139,2]
[333288663,1722027043933,-1199.75966521,0.000139,2]
[333288664,1722027043945,-151.0,0.00013941,2]
[333288665,1722027043957,-151.0,0.00013941,2]
[333288666,1722027043967,-151.0,0.00013941,2]
[333288667,1722027043977,-151.0,0.00013941,2]
[333288668,1722027043990,-151.0,0.00013941,2]
[333288669,1722027044000,-151.0,0.00013941,2]
[333288670,1722027044011,-151.0,0.00013941,2]
[333288671,1722027044023,-151.0,0.00013941,2]
[333288672,1722027044034,-262.633643,0.00013941,2]
[333288673,1722027044046,-262.633643,0.00013941,2]
[333288674,1722027044056,-151.0,0.00013941,2]
[333288675,1722027044066,-151.0,0.00013941,2]
[333288676,1722027044077,-262.633643,0.00013941,2]
[333288677,1722027044087,-262.633643,0.00013941,2]
[333288678,1722027044098,-166056.08984962,0.00013941,5]
[333288679,1722027044531,-157.14943285,0.00013698,2]
[333288680,1722027044542,-500.0,0.00013698,2]
[333288681,1722027044554,-500.0,0.00013698,2]
[333288682,1722027044565,-500.0,0.00013698,2]
[333288683,1722027044575,-2114.27427528,0.00013941,5]
[333288719,1722027047087,-500.0,0.00013698,2]
[333288720,1722027047097,-500.0,0.00013698,2]
[333288721,1722027047107,-500.0,0.00013698,2]
[333288722,1722027047117,-500.0,0.00013698,2]
[333288723,1722027047126,-500.0,0.00013698,2]
[333288724,1722027047136,-500.0,0.00013698,2]
[333288725,1722027047146,-500.0,0.00013698,2]
[333288727,1722027047155,-500.0,0.00013698,2]
[333288729,1722027047166,-500.0,0.00013698,2]
[333288730,1722027047178,-3137.31245016,0.00013941,5]
[333288731,1722027047202,-6.30015182,0.00013941,5]
[333288745,1722027890450,309.26,0.00022,30]
[333288746,1722027951131,-161.464041,0.00012766,2]
[333288747,1722027951153,-161.464041,0.00013098,2]
[333288748,1722027951174,-157.334295,0.00013425,2]
[333288749,1722027951195,-161.464041,0.00013431,2]
[333288750,1722027951220,-223.08607874,0.0001359,2]
[333288751,1722027951243,-367.794232,0.00013598,2]
[333288752,1722027951267,-1000.0,0.00013598,2]
[333288753,1722027951288,-179.52166658,0.00013675,2]
[333288754,1722028004885,4000.0,0.000101,3]
[333288755,1722028042442,-182.98073957,9.999e-05,2]
[333288756,1722028042465,-200.0,0.0001,2]
[333288757,1722028042488,-400.0,0.0001137,2]
[333288758,1722028042509,-546.41063381,0.00013639,2]
[333288759,1722028042531,-2899.5995697,0.00013675,2]
[333288760,1722028204038,273.37336231,9.9e-05,2]
[333288883,1722028240379,-185.189331,0.00012785,2]
[333288885,1722028240389,-185.189331,0.00013118,2]
[333288887,1722028240399,-157.334296,0.00013425,2]
[333288889,1722028240408,-185.189331,0.00013451,2]
[333288891,1722028240418,-4626.6956656,0.00013675,2]
[333288893,1722028240428,-334134.121862,0.00013688,2]
[333288895,1722028240439,-3222.9,0.00013698,2]
[333288897,1722028240449,-3222.9,0.00013698,2]
[333288899,1722028240458,-3222.9,0.00013698,2]
[333288901,1722028240468,-3222.9,0.00013698,2]
[333288903,1722028240477,-3222.9,0.00013698,2]
[333288905,1722028240487,-3222.9,0.00013698,2]
[333288907,1722028240496,-3222.9,0.00013698,2]
[333288909,1722028240506,-3222.9,0.00013698,2]
[333288911,1722028240515,-3222.9,0.00013698,2]
[333288913,1722028240524,-3222.9,0.00013698,2]
[333288914,1722028240533,-3222.9,0.00013698,2]
[333288916,1722028240543,-3222.9,0.00013698,2]
[333288918,1722028240552,-3222.9,0.00013698,2]
[333288920,1722028240562,-3222.9,0.00013698,2]
[333288922,1722028240571,-3222.9,0.00013698,2]
[333288924,1722028240581,-3222.9,0.00013698,2]
[333288926,1722028240591,-3222.9,0.00013698,2]
[333288927,1722028240600,-3222.9,0.00013698,2]
[333288928,1722028240610,-3222.9,0.00013698,2]
[333288929,1722028240620,-3222.9,0.00013698,2]
[333288930,1722028240629,-3222.9,0.00013698,2]
[333288931,1722028240639,-3222.9,0.00013698,2]
[333288932,1722028240648,-3222.9,0.00013698,2]
[333288933,1722028240658,-3222.9122029,0.00013698,2]
[333288934,1722028240667,-509.84548094,0.00013698,2]
[333288935,1722028240677,-516.06135797,0.00013698,2]
[333288936,1722028240686,-500.0,0.00013698,2]
[333288937,1722028240696,-534.68855558,0.00013698,2]
[333288938,1722028240706,-503.88218785,0.00013698,2]
[333288939,1722028240715,-501.34573133,0.00013698,2]
[333288940,1722028240725,-500.0,0.00013698,2]
[333288941,1722028240734,-500.0,0.00013698,2]
[333288942,1722028240744,-500.0,0.00013698,2]
[333288943,1722028240756,-193.38715633,0.00013698,2]
[333288944,1722028240766,-501.2481524,0.00013698,2]
[333288945,1722028240775,-500.0,0.00013698,2]
[333288946,1722028240785,-500.0,0.00013698,2]
[333288947,1722028240795,-505.92248402,0.00013698,2]
[333288948,1722028240804,-500.0,0.00013698,2]
[333288949,1722028240814,-500.0,0.00013698,2]
[333288950,1722028240824,-501.11110698,0.00013698,2]
[333288951,1722028240835,-500.0,0.00013698,2]
[333288952,1722028240845,-515.77249068,0.00013698,2]
[333288953,1722028240855,-500.0,0.00013698,2]
[333288954,1722028240864,-500.0,0.00013698,2]
[333288955,1722028240875,-500.0,0.00013698,2]
[333288956,1722028240886,-519.42437233,0.00013698,2]
[333288957,1722028240895,-500.0,0.00013698,2]
[333288958,1722028240904,-500.0,0.00013698,2]
[333288959,1722028240914,-500.0,0.00013698,2]
[333288960,1722028240923,-500.0,0.00013698,2]
[333288961,1722028240933,-500.66325794,0.00013698,2]
[333288962,1722028240943,-500.39114222,0.00013698,2]
[333288963,1722028240953,-500.0,0.00013698,2]
[333288964,1722028240963,-500.0,0.00013698,2]
[333288965,1722028240972,-500.0,0.00013698,2]
[333288966,1722028240982,-500.0,0.00013698,2]
[333288967,1722028240991,-500.0,0.00013698,2]
[333288968,1722028241000,-921.44,0.00013698,2]
[333288969,1722028241010,-500.0,0.00013698,2]
[333288970,1722028241020,-500.0,0.00013698,2]
[333288971,1722028241030,-500.0,0.00013698,2]
[333288972,1722028241040,-500.0,0.00013698,2]
[333288973,1722028241049,-500.0,0.00013698,2]
[333288974,1722028241059,-500.0,0.00013698,2]
[333288975,1722028241068,-500.0,0.00013698,2]
[333288976,1722028241216,-500.0,0.00013698,2]
[333288977,1722028241235,-500.0,0.00013698,2]
[333288978,1722028241244,-700.8,0.00013698,2]
[333288979,1722028241254,-500.0,0.00013698,2]
[333288980,1722028241263,-500.0,0.00013698,2]
[333288981,1722028241274,-500.0,0.00013698,2]
[333288982,1722028241283,-500.0,0.00013698,2]
[333288983,1722028241293,-500.0,0.00013698,2]
[333288984,1722028241302,-1027.5,0.00013698,2]
[333288985,1722028241312,-500.0,0.00013698,2]
[333288986,1722028241321,-505.2805915,0.00013698,2]
[333288987,1722028241331,-500.0,0.00013698,2]
[333288988,1722028241341,-151.0,0.00013698,2]
[333288989,1722028241350,-640.43780664,0.00013698,2]
[333288990,1722028241361,-1121.35,0.00013698,2]
[333288991,1722028241371,-500.0,0.00013698,2]
[333288992,1722028241381,-513.49145034,0.00013698,2]
[333288993,1722028241390,-500.0,0.00013698,2]
[333288994,1722028241399,-500.0,0.00013698,2]
[333288995,1722028241408,-500.0,0.00013698,2]
[333288996,1722028241417,-582.11,0.00013698,2]
[333288997,1722028241427,-500.0,0.00013698,2]
[333288998,1722028241438,-500.0,0.00013698,2]
[333288999,1722028241449,-500.0,0.00013698,2]
[333289000,1722028241462,-502.24,0.00013698,2]
[333289001,1722028241472,-500.0,0.00013698,2]
[333289002,1722028241482,-500.0,0.00013698,2]
[333289003,1722028241492,-500.0,0.00013698,2]
[333289004,1722028241501,-500.0,0.00013698,2]
[333289005,1722028241512,-500.0,0.00013698,2]
[333289006,1722028241523,-500.0,0.00013698,2]
[333289007,1722028241532,-500.0,0.00013698,2]
[333289008,1722028241542,-500.0,0.00013698,2]
[333289009,1722028241551,-500.0,0.00013698,2]
[333289010,1722028241561,-822.76,0.00013698,2]
[333289011,1722028241570,-353.63996096,0.00013698,2]
[333289012,1722028241580,-500.0,0.00013698,2]
[333289013,1722028241590,-501.00313867,0.00013698,2]
[333289014,1722028241600,-500.0,0.00013698,2]
[333289015,1722028241609,-500.0,0.00013698,2]
[333289016,1722028241619,-500.0,0.00013698,2]
[333289017,1722028241629,-500.0,0.00013698,2]
[333289018,1722028241641,-500.0,0.00013698,2]
[333289019,1722028241651,-500.0,0.00013698,2]
[333289020,1722028241661,-500.0,0.00013698,2]
[333289021,1722028241671,-500.0,0.00013698,2]
[333289022,1722028241680,-500.0,0.00013698,2]
[333289023,1722028241690,-500.0,0.00013698,2]
[333289024,1722028241701,-505.86713518,0.00013698,2]
[333289025,1722028241710,-500.0,0.00013698,2]
[333289026,1722028241720,-723.34,0.00013698,2]
[333289027,1722028241730,-500.0,0.00013698,2]
[333289028,1722028241741,-500.0,0.00013698,2]
[333289029,1722028241757,-500.0,0.00013698,2]
[333289030,1722028241768,-500.0,0.00013698,2]
[333289031,1722028241778,-814.73,0.00013698,2]
[333289032,1722028241791,-500.0,0.00013698,2]
[333289033,1722028241803,-500.0,0.00013698,2]
[333289034,1722028241813,-500.0,0.00013698,2]
[333289035,1722028241824,-504.39,0.00013698,2]
[333289036,1722028241836,-151.0,0.00013698,2]
[333289037,1722028241848,-500.0,0.00013698,2]
[333289038,1722028241859,-774.1,0.00013698,2]
[333289039,1722028241868,-302.55066996,0.00013698,2]
[333289040,1722028241878,-457.91919366,0.00013698,2]
[333289041,1722028241888,-151.0,0.00013698,2]
[333289042,1722028241897,-500.0,0.00013698,2]
[333289043,1722028241906,-500.0,0.00013698,2]
[333289044,1722028241916,-268.45224502,0.00013698,2]
[333289045,1722028241925,-151.0,0.00013698,2]
[333289046,1722028241936,-804.26,0.00013698,2]
[333289047,1722028241945,-500.63549699,0.00013698,2]
[333289048,1722028241955,-151.0,0.00013698,2]
[333289049,1722028241964,-500.0,0.00013698,2]
[333289050,1722028241974,-151.0,0.00013698,2]
[333289051,1722028241984,-500.0,0.00013698,2]
[333289052,1722028241994,-500.0,0.00013698,2]
[333289053,1722028242004,-485.13906407,0.00013698,2]
[333289054,1722028242014,-500.0,0.00013698,2]
[333289055,1722028242024,-500.0,0.00013698,2]
[333289056,1722028242033,-500.0,0.00013698,2]
[333289057,1722028242043,-500.0,0.00013698,2]
[333289058,1722028242053,-913.59,0.00013698,2]
[333289059,1722028242062,-500.0,0.00013698,2]
[333289060,1722028242073,-500.0,0.00013698,2]
[333289061,1722028242083,-500.0,0.00013698,2]
[333289062,1722028242093,-500.0,0.00013698,2]
[333289063,1722028242103,-500.0,0.00013698,2]
[333289064,1722028242112,-151.0,0.00013698,2]
[333289065,1722028242122,-1189.87,0.00013698,2]
[333289066,1722028242131,-500.0,0.00013698,2]
[333289067,1722028242141,-500.0,0.00013698,2]
[333289068,1722028242150,-500.0,0.00013698,2]
[333289069,1722028242159,-319.522517,0.00013698,2]
[333289070,1722028242169,-500.0,0.00013698,2]
[333289071,1722028242179,-151.0,0.00013698,2]
[333289072,1722028242188,-319.522517,0.00013698,2]
[333289073,1722028242199,-151.0,0.00013698,2]
[333289074,1722028242208,-500.0,0.00013698,2]
[333289075,1722028242217,-352.51399078,0.00013698,2]
[333289076,1722028242226,-500.0,0.00013698,2]
[333289077,1722028242236,-500.0,0.00013698,2]
[333289078,1722028242245,-503.48151961,0.00013698,2]
[333289079,1722028242254,-500.0,0.00013698,2]
[333289080,1722028242263,-924.38,0.00013698,2]
[333289081,1722028242273,-500.0,0.00013698,2]
[333289082,1722028242282,-500.0,0.00013698,2]
[333289083,1722028242291,-500.0,0.00013698,2]
[333289084,1722028242301,-500.0,0.00013698,2]
[333289085,1722028242310,-1003.92,0.00013698,2]
[333289086,1722028242320,-500.0,0.00013698,2]
[333289087,1722028242329,-500.0,0.00013698,2]
[333289088,1722028242339,-500.0,0.00013698,2]
[333289089,1722028242348,-500.0,0.00013698,2]
[333289090,1722028242358,-500.0,0.00013698,2]
[333289091,1722028242367,-500.0,0.00013698,2]
[333289092,1722028242376,-500.0,0.00013698,2]
[333289093,1722028242385,-500.0,0.00013698,2]
[333289094,1722028242395,-500.0,0.00013698,2]
[333289095,1722028242404,-500.0,0.00013698,2]
[333289096,1722028242413,-500.0,0.00013698,2]
[333289097,1722028242423,-500.0,0.00013698,2]
[333289098,1722028242433,-590.02188297,0.00013698,2]
[333289099,1722028242442,-500.0,0.00013698,2]
[333289100,1722028242454,-1684.65,0.00013698,2]
[333289101,1722028242463,-500.0,0.00013698,2]
[333289102,1722028242472,-707.06,0.00013698,2]
[333289103,1722028242485,-500.0,0.00013698,2]
[333289104,1722028242494,-500.0,0.00013698,2]
[333289105,1722028242503,-500.0,0.00013698,2]
[333289106,1722028242512,-236.96465992,0.00013698,2]
[333289107,1722028242521,-703.97,0.00013698,2]
[333289108,1722028242530,-500.0,0.00013698,2]
[333289109,1722028242538,-502.26495527,0.00013698,2]
[333289110,1722028242547,-500.0,0.00013698,2]
[333289111,1722028242556,-500.0,0.00013698,2]
[333289112,1722028242567,-500.0,0.00013698,2]
[333289113,1722028242578,-502.76179262,0.00013698,2]
[333289114,1722028242589,-618.21040356,0.00013698,2]
[333289115,1722028242599,-500.0,0.00013698,2]
[333289116,1722028242610,-500.0,0.00013698,2]
[333289117,1722028242621,-500.0,0.00013698,2]
[333289118,1722028242631,-618.25608533,0.00013698,2]
[333289119,1722028242640,-550.54050196,0.00013698,2]
[333289120,1722028242650,-640.54637123,0.00013698,2]
[333289121,1722028242660,-615.15208422,0.00013698,2]
[333289122,1722028242670,-500.0,0.00013698,2]
[333289123,1722028242680,-500.0,0.00013698,2]
[333289124,1722028242689,-500.0,0.00013698,2]
[333289126,1722028242700,-500.0,0.00013698,2]
[333289128,1722028242709,-500.0,0.00013698,2]
[333289129,1722028242719,-500.0,0.00013698,2]
[333289130,1722028242729,-500.0,0.00013698,2]
[333289131,1722028242740,-500.0,0.00013698,2]
[333289132,1722028242750,-500.0,0.00013698,2]
[333289133,1722028242762,-500.0,0.00013698,2]
[333289134,1722028242773,-500.0,0.00013698,2]
[333289135,1722028242782,-500.0,0.00013698,2]
[333289136,1722028242791,-500.0,0.00013698,2]
[333289137,1722028242800,-666.7,0.00013698,2]
[333289140,1722028242815,-500.0,0.00013698,2]
[333289142,1722028242827,-503.636417,0.00013698,2]
[333289143,1722028242840,-500.0,0.00013698,2]
[333289144,1722028242853,-500.0,0.00013698,2]
[333289146,1722028242867,-151.0,0.00013698,2]
[333289148,1722028242878,-1380.54,0.00013698,2]
[333289150,1722028242889,-500.0,0.00013698,2]
[333289151,1722028242902,-1162.8,0.00013698,2]
[333289152,1722028242916,-500.0,0.00013698,2]
[333289154,1722028242928,-500.0,0.00013698,2]
[333289156,1722028242940,-503.8757368,0.00013698,2]
[333289158,1722028242955,-1188.54,0.00013698,2]
[333289159,1722028242968,-151.0,0.00013698,2]
[333289161,1722028242982,-500.0,0.00013698,2]
[333289162,1722028242995,-2157.47,0.00013698,2]
[333289163,1722028243009,-5519.72,0.00013698,2]
[333289164,1722028243022,-1043.43,0.00013698,2]
[333289165,1722028243036,-500.0,0.00013698,2]
[333289166,1722028243051,-151.0,0.00013698,2]
[333289167,1722028243065,-2025.74,0.00013698,2]
[333289168,1722028243076,-500.0,0.00013698,2]
[333289169,1722028243089,-500.0,0.00013698,2]
[333289170,1722028243103,-500.0,0.00013698,2]
[333289171,1722028243117,-500.0,0.00013698,2]
[333289172,1722028243130,-333.367688,0.00013698,2]
[333289173,1722028243142,-500.0,0.00013698,2]
[333289174,1722028243155,-333.367688,0.00013698,2]
[333289175,1722028243168,-500.0,0.00013698,2]
[333289176,1722028243178,-262.633643,0.00013698,2]
[333289177,1722028243188,-500.0,0.00013698,2]
[333289178,1722028243199,-500.0,0.00013698,2]
[333289179,1722028243210,-262.633643,0.00013698,2]
[333289180,1722028243222,-500.0,0.00013698,2]
[333289181,1722028243236,-7849.32,0.00013698,2]
[333289182,1722028243248,-500.0,0.00013698,2]
[333289183,1722028243259,-500.0,0.00013698,2]
[333289184,1722028243271,-500.0,0.00013698,2]
[333289185,1722028243283,-500.0,0.00013698,2]
[333289186,1722028243296,-295.1,0.00013698,2]
[333289187,1722028243309,-151.0,0.00013698,2]
[333289188,1722028243321,-500.0,0.00013698,2]
[333289189,1722028243332,-151.0,0.00013698,2]
[333289190,1722028243347,-500.0,0.00013698,2]
[333289191,1722028243360,-500.0,0.00013698,2]
[333289192,1722028243371,-3292.59,0.00013698,2]
[333289193,1722028243382,-500.0,0.00013698,2]
[333289194,1722028243393,-669.6,0.00013698,2]
[333289195,1722028243406,-500.0,0.00013698,2]
[333289196,1722028243420,-500.0,0.00013698,2]
[333289197,1722028243432,-500.0,0.00013698,2]
[333289198,1722028243446,-500.0,0.00013698,2]
[333289199,1722028243459,-151.0,0.00013698,2]
[333289200,1722028243470,-500.0,0.00013698,2]
[333289201,1722028243480,-276.829084,0.00013698,2]
[333289202,1722028243492,-1606.88,0.00013698,2]
[333289203,1722028243503,-500.0,0.00013698,2]
[333289204,1722028243516,-500.0,0.00013698,2]
[333289205,1722028243528,-500.0,0.00013698,2]
[333289206,1722028243541,-516.12729304,0.00013698,2]
[333289207,1722028243555,-749.51,0.00013698,2]
[333289208,1722028243566,-500.0,0.00013698,2]
[333289209,1722028243577,-500.0,0.00013698,2]
[333289210,1722028243588,-151.0,0.00013698,2]
[333289211,1722028243600,-500.0,0.00013698,2]
[333289212,1722028243610,-500.0,0.00013698,2]
[333289213,1722028243622,-151.0,0.00013698,2]
[333289214,1722028243633,-500.0,0.00013698,2]
[333289215,1722028243645,-742.91,0.00013698,2]
[333289216,1722028243655,-500.0,0.00013698,2]
[333289217,1722028243665,-500.0,0.00013698,2]
[333289218,1722028243676,-937.18,0.00013698,2]
[333289219,1722028243686,-500.0,0.00013698,2]
[333289220,1722028243697,-500.0,0.00013698,2]
[333289221,1722028243707,-501.53796063,0.00013698,2]
[333289222,1722028243718,-500.0,0.00013698,2]
[333289223,1722028243728,-500.0,0.00013698,2]
[333289224,1722028243739,-557.16,0.00013698,2]
[333289225,1722028243750,-151.0,0.00013698,2]
[333289226,1722028243765,-500.0,0.00013698,2]
[333289227,1722028243776,-500.0,0.00013698,2]
[333289228,1722028243786,-500.0,0.00013698,2]
[333289229,1722028243798,-2184.54,0.00013698,2]
[333289230,1722028243809,-500.0,0.00013698,2]
[333289231,1722028243819,-500.0,0.00013698,2]
[333289232,1722028243829,-616.96,0.00013698,2]
[333289233,1722028243840,-500.0,0.00013698,2]
[333289234,1722028243851,-1932.73,0.00013698,2]
[333289235,1722028243861,-884.36,0.00013698,2]
[333289236,1722028243872,-500.0,0.00013698,2]
[333289237,1722028243882,-765.64,0.00013698,2]
[333289238,1722028243893,-654.48,0.00013698,2]
[333289239,1722028243903,-500.000001,0.00013698,2]
[333289240,1722028243915,-1659.37,0.00013698,2]
[333289241,1722028243926,-341.485817,0.00013698,2]
[333289242,1722028243938,-500.0,0.00013698,2]
[333289243,1722028243949,-799.68,0.00013698,2]
[333289244,1722028243960,-500.0,0.00013698,2]
[333289245,1722028243971,-272.96800646,0.00013698,2]
[333289246,1722028244186,-227.88386343,0.00013698,2]
[333289247,1722028244198,-341.485817,0.00013698,2]
[333289248,1722028244209,-500.0,0.00013698,2]
[333289249,1722028244219,-368.02312852,0.00013698,2]
[333289250,1722028244926,-384.88687148,0.00013698,2]
[333289251,1722028244936,-500.0,0.00013698,2]
[333289252,1722028244946,-500.0,0.00013698,2]
[333289253,1722028244956,-499.50895014,0.00013698,2]
[333289263,1722028246093,-0.49104986,0.00013698,2]
[333289264,1722028246103,-5566.03,0.00013698,2]
[333289265,1722028246114,-522.36028457,0.00013698,2]
[333289266,1722028246123,-500.0,0.00013698,2]
[333289267,1722028246133,-500.0,0.00013698,2]
[333289268,1722028246143,-500.0,0.00013698,2]
[333289269,1722028246153,-500.0,0.00013698,2]
[333289270,1722028246162,-1657.83,0.00013698,2]
[333289271,1722028246172,-151.0,0.00013698,2]
[333289272,1722028246181,-3530.98,0.00013698,2]
[333289273,1722028246191,-393.76072345,0.00013698,2]
[333289274,1722028246202,-500.0,0.00013698,2]
[333289275,1722028246212,-1116.92,0.00013698,2]
[333289276,1722028246222,-500.0,0.00013698,2]
[333289277,1722028246232,-151.0,0.00013698,2]
[333289278,1722028246242,-151.0,0.00013698,2]
[333289279,1722028246251,-500.0,0.00013698,2]
[333289280,1722028246261,-500.0,0.00013698,2]
[333289281,1722028246271,-500.0,0.00013698,2]
[333289282,1722028246281,-500.0,0.00013698,2]
[333289283,1722028246290,-881.77,0.00013698,2]
[333289284,1722028246299,-500.0,0.00013698,2]
[333289285,1722028246309,-500.0,0.00013698,2]
[333289286,1722028246319,-500.0,0.00013698,2]
[333289287,1722028246328,-562.6930076,0.00013698,2]
[333289288,1722028246338,-841.74,0.00013698,2]
[333289289,1722028246347,-504.3622422,0.00013698,2]
[333289290,1722028246358,-500.0,0.00013698,2]
[333289291,1722028246368,-500.0,0.00013698,2]
[333289292,1722028246377,-500.0,0.00013698,2]
[333289293,1722028246386,-506.78547988,0.00013698,2]
[333289294,1722028246395,-500.0,0.00013698,2]
[333289295,1722028246404,-630.61875871,0.00013698,2]
[333289296,1722028246413,-662.62,0.00013698,2]
[333289297,1722028246423,-509.40211668,0.00013698,2]
[333289298,1722028246434,-984.49,0.00013698,2]
[333289299,1722028246444,-500.0,0.00013698,2]
[333289300,1722028246455,-500.0,0.00013698,2]
[333289301,1722028246466,-500.0,0.00013698,2]
[333289302,1722028246476,-399.84210935,0.00013698,2]
[333289303,1722028246486,-500.0,0.00013698,2]
[333289304,1722028246496,-500.0,0.00013698,2]
[333289305,1722028246505,-500.0,0.00013698,2]
[333289306,1722028246515,-500.0,0.00013698,2]
[333289307,1722028246525,-500.0,0.00013698,2]
[333289308,1722028246534,-500.0,0.00013698,2]
[333289309,1722028246546,-500.0,0.00013698,2]
[333289310,1722028246558,-500.0,0.00013698,2]
[333289311,1722028246568,-500.0,0.00013698,2]
[333289312,1722028246578,-500.0,0.00013698,2]
[333289313,1722028246588,-844.98,0.00013698,2]
[333289314,1722028246598,-505.39149835,0.00013698,2]
[333289315,1722028246608,-500.0,0.00013698,2]
[333289316,1722028246617,-922.63,0.00013698,2]
[333289317,1722028246627,-151.0,0.00013698,2]
[333289318,1722028246638,-151.0,0.00013698,2]
[333289319,1722028246647,-949.37,0.00013698,2]
[333289321,1722028246657,-500.0,0.00013698,2]
[333289323,1722028246666,-151.0,0.00013698,2]